Cogmind - Beta 11 @@@ ROGUE MODE // 2022.03.24 @ 15:59:47 Player: Gobbopathe Result: Destroyed by YI-UF0 with YI-UF0's Doublenader Performance ------------- Evolutions (0) 0 Regions Visited (2) 400 Robots Destroyed (13) 65 Value Destroyed (224) 224 Prototype IDs (0) 0 Alien Tech Used (0) 0 Bonus (0) 0 TOTAL SCORE: 689 Bonus ------- None Cogmind --------- Core Integrity 0/250 Matter 300/300 Energy 70/100 System Corruption 1% Temperature Cool (11) Movement Core (450) Ox8 Location -10/Mines Parts ------- > --- POWER (1) -------- (None) > --- PROPULSION (2) --- (None) > --- UTILITY (2) ------ Large Storage Unit Sensor Array > --- WEAPON (2) ------- Medium Laser Beam Cannon > --- INVENTORY (15) --- Improved Heat Sink Improved Terrain Scanner Core Shielding Light Armor Plating Light Assault Rifle Light Assault Rifle Light Assault Rifle Light Assault Rifle Grenade Launcher Grenade Launcher Peak State ------------ > --- POWER ------------ Ion Engine > --- PROPULSION ------- Wheel Compact Wheel > --- UTILITY ---------- Small Storage Unit Improved Terrain Scanner > --- WEAPON ----------- Medium Laser Assault Rifle > --- INVENTORY -------- Light Ion Engine Wheel Medium Laser [Rating: 9] Favorites ----------- Power Ion Engine Engine Ion Engine Propulsion Wheel Treads Light Treads Leg Aluminum Leg Wheel Wheel Utility Sensor Array Device Sensor Array Storage Large Storage Unit Weapon Medium Laser Energy Gun Medium Laser Energy Cannon Beam Cannon Ballistic Gun Assault Rifle Launcher Grenade Launcher Build | -11 -10 -10 ------- Run | Scr Mat Min Slots Evolved . | . . . Power . | . . . Propulsion . | . . . Utility . | . . . Weapon . | . . . Parts Attached 21 | 7 13 1 Power 5 | 1 3 1 Engine 5 | 1 3 1 Core . | . . . Reactor . | . . . Propulsion 5 | 2 3 . Treads 1 | . 1 . Leg 1 | . 1 . Wheel 3 | 2 1 . Hover . | . . . Flight . | . . . Utility 4 | 2 2 . Device 2 | 1 1 . Storage 2 | 1 1 . Processor . | . . . Hackware . | . . . Protection . | . . . Artifact . | . . . Weapon 7 | 2 5 . Energy Gun 3 | 1 2 . Energy Cannon 1 | . 1 . Ballistic Gun 2 | 1 1 . Ballistic Cannon . | . . . Launcher 1 | . 1 . Special Weapon . | . . . Impact Weapon . | . . . Slashing Weapon . | . . . Piercing Weapon . | . . . Special Melee Weapon . | . . . Unidentified Prototypes . | . . . Parts Lost 9 | . 5 4 Power 3 | . 1 2 Propulsion 4 | . 2 2 Utility . | . . . Weapon 2 | . 2 . Highest Loss Streak 4 | . 4 4 To Critical Strikes . | . . . Average Slot Usage (%) 98 | . 99 98 Engine 13 | . 14 13 Treads 9 | . 5 14 Wheel 17 | . 21 13 Device 14 | . 14 14 Storage 14 | . 14 14 Energy Gun 14 | . 14 14 Energy Cannon 7 | . 2 14 Ballistic Gun 4 | . 7 . Launcher 1 | . 3 . Naked Turns . | . . . Heaviest Build 31 | 15 31 31 Greatest Support 26 | 26 26 20 Greatest Overweight (x) 1 | . 1 1 Average Overweight (x) . | . . 1 Largest Inventory Capacity 15 | 8 15 15 Average Capacity 12 | 7 10 15 Most Carried 11 | 3 9 11 Average Carried 6 | 2 4 9 Final Capacity 15 | 8 15 15 Final Carried 10 | 3 9 10 Class Distribution -------------------- 100% | Mutant Dominant Class ---------------- Mutant | -10/Materials Mutant | -10/Mines Resources | -11 -10 -10 ----------- Run | Scr Mat Min Matter Collected 495 | 279 216 . Remotely . | . . . Salvage Created 426 | 107 319 . Parts 25 | 5 20 . Haulers Intercepted 1 | . 1 . Recyclers Shooed 2 | . 2 . Parts Field Recycled . | . . . Retrieved Matter . | . . . Parts Self-Destructed . | . . . Prevented . | . . . Kills | -11 -10 -10 ------- Run | Scr Mat Min Combat Hostiles Destroyed 10 | . 10 . Guns 9 | . 9 . Cannons 1 | . 1 . Classes Destroyed 5 | 2 3 . Tunneler 1 | 1 . . Hauler 1 | . 1 . Recycler 1 | 1 . . Swarmer 6 | . 6 . Grunt 4 | . 4 . Best Kill Streak 6 | 2 6 . Combat Bots Only 6 | . 6 . Max Kills in Single Turn 1 | 1 1 . Gunslinging . | . . . Exploded . | . . . Melee . | . . . Uniques/NPCs Destroyed . | . . . Combat | -11 -10 -10 -------- Run | Scr Mat Min Damage Taken 1039 | . 561 478 Core 250 | . 172 78 Absorbed by Shields . | . . . Core Remaining (%) 100 | 100 . . Volleys Fired 73 | 3 66 4 Largest 2 | 2 2 2 Hottest 110 | 70 110 110 Shots Fired 118 | 6 104 8 Gun 112 | 6 102 4 Cannon 6 | . 2 4 Launcher . | . . . Special . | . . . Kinetic 40 | 3 37 . Thermal 78 | 3 67 8 Explosive . | . . . Electromagnetic . | . . . Robot Hit Streak 10 | 3 10 5 Robot Miss Streak 4 | 1 4 2 Penetration Max . | . . . Secondary Targets 1 | . 1 . Max Gunslinging Chain 1 | . 1 . Shots Hit Robots 69 | 4 59 6 Core Hits 23 | 3 19 1 Critical Kills . | . . . Critical Parts Destroyed . | . . . Critical Strikes 3 | . 3 . Burn 3 | . 3 . Melee Attacks . | . . . Impact . | . . . Slashing . | . . . Piercing . | . . . Sneak Attacks . | . . . Combat Hostiles . | . . . Follow-up Attacks . | . . . Damage Inflicted 921 | 53 777 91 Guns 851 | 53 759 39 Cannons 70 | . 18 52 Explosions . | . . . Melee . | . . . Ramming . | . . . Kinetic 246 | 27 219 . Thermal 675 | 26 558 91 Explosive . | . . . Electromagnetic . | . . . Impact . | . . . Slashing . | . . . Piercing . | . . . Highest Corruption 1 | . 1 1 Average Corruption 1 | . 1 1 Corruption Purged . | . . . Corruption Blocked . | . . . Effects 6 | . 4 2 Message Errors 3 | . 2 1 Matter Fused 1 | . 1 . Alerts 1 | . . 1 Weapon Failures 1 | . 1 . Overload Shots . | . . . Overflow Damage . | . . . Projectiles . | . . . Explosions . | . . . Melee . | . . . Knockbacks . | . . . Impact . | . . . Kinetic . | . . . Secondary . | . . . Self-Inflicted Damage . | . . . Shots . | . . . Rammed . | . . . Targets Rammed . | . . . Kicked . | . . . Crushed . | . . . Highest Temperature 207 | 18 207 104 Average Temperature 60 | 9 63 51 Received Heat Transfer 195 | . 195 . Siege Activations . | . . . Robots Corrupted . | . . . Combat Hostiles . | . . . Parts Fried . | . . . Impact Corruptions . | . . . Robots Melted . | . . . Combat Hostiles . | . . . Parts Melted 3 | . 3 . Heat Transferred 2146 | 74 1850 222 Parts Sabotaged . | . . . Parts Stolen . | . . . Parts Stripped . | . . . Power Chain Reactions . | . . . Missiles Intercepted . | . . . Alert | -11 -10 -10 ------- Run | Scr Mat Min Peak Influence 252 | 10 252 33 Initial 33 | . 6 33 Average 97 | 5 170 31 Maximum Alert Level 1 | . 1 . Low Security (%) 74 | 100 47 100 Level 1 25 | . 52 . Level 2 . | . . . Level 3 . | . . . Level 4 . | . . . Level 5 . | . . . High Security . | . . . Max Security . | . . . Squads Dispatched . | . . . Investigation . | . . . Extermination . | . . . Reinforcement . | . . . Assault . | . . . Garrison . | . . . Intercept . | . . . Searches Triggered . | . . . Construction Impeded . | . . . Haulers Reinforced . | . . . Active Scanning Responses . | . . . Cargo Convoy Interrupts . | . . . Stealth | -11 -10 -10 --------- Run | Scr Mat Min Distress Signals 3 | . 3 . Communications Jammed . | . . . Distress Signals . | . . . Times Spotted 17 | . 16 1 Peak Tracking Total 4 | . 4 1 Tactical Retreats 3 | . 3 . Traps | -11 -10 -10 ------- Run | Scr Mat Min Traps Triggered 2 | . 2 . Indirectly . | . . . Trap Hack Attempts . | . . . Triggered . | . . . Disarmed . | . . . Reprogrammed . | . . . Reused . | . . . Traps Extracted . | . . . Installed . | . . . Triggered . | . . . Machines | -11 -10 -10 ---------- Run | Scr Mat Min Machines Disabled . | . . . Max in Single Turn . | . . . Machines Sabotaged . | . . . Garrisons Compromised . | . . . Overloaded Fab Kills . | . . . Hacking | -11 -10 -10 --------- Run | Scr Mat Min Machines Accessed 4 | . 4 . Terminals 4 | . 4 . Fabricators . | . . . Repair Stations . | . . . Recycling Units . | . . . Scanalyzers . | . . . Garrison Access . | . . . Total Hacks 15 | . 15 . Successful 9 | . 9 . Failed 6 | . 6 . Catastrophic . | . . . Database Lockouts . | . . . Manual 8 | . 8 . Terminals 15 | . 15 . Fabricators . | . . . Repair Stations . | . . . Recycling Units . | . . . Scanalyzers . | . . . Garrison Access . | . . . Terminal Hacks 4 | . 4 . Record 1 | . 1 . Terminal Index 1 | . 1 . Locate Traps 1 | . 1 . Patrol Status 1 | . 1 . Fabricator Hacks . | . . . Repair Station Hacks . | . . . Recycling Unit Hacks . | . . . Scanalyzer . | . . . Garrison Access Hacks . | . . . Unauthorized Hacks 5 | . 5 . Terminals 5 | . 5 . Track 2 | . 2 . Botnet 2 | . 2 . Operators 1 | . 1 . Fabricators . | . . . Repair Stations . | . . . Recycling Units . | . . . Scanalyzers . | . . . Garrison Access . | . . . Data Cores Recovered . | . . . Used . | . . . Hacking Detections 4 | . 4 . Full Trace Events . | . . . Feedback Events . | . . . Feedback Blocked . | . . . Robot Schematics Acquired . | . . . Robots Built . | . . . Authchips . | . . . Time . | . . . Total Robot Build Rating . | . . . Part Schematics Acquired . | . . . Parts Built . | . . . Authchips . | . . . Time . | . . . Total Part Build Rating . | . . . Parts Repaired . | . . . Time . | . . . Parts Recycled . | . . . Recycled Matter . | . . . Retrieved Matter . | . . . Retrieved Components . | . . . Parts Scanalyzed . | . . . Part Schematics Acquired . | . . . Parts Damaged . | . . . Bothacking | -11 -10 -10 ------------ Run | Scr Mat Min Used RIF Installer . | . . . Robots Hacked . | . . . Non-combat . | . . . Combat . | . . . Robot Hacks Applied . | . . . Relay Couplers Released . | . . . Fabnet Peak Effective % . | . . . Robots Rewired . | . . . Allies Hacked . | . . . Hacks Repelled . | . . . Allies | -11 -10 -10 -------- Run | Scr Mat Min Total Allies . | . . . Largest Group . | . . . Highest-Rated Group . | . . . Highest-Rated Ally . | . . . Total Orders . | . . . Ally Attacks . | . . . Total Damage . | . . . Kills . | . . . Allies Corrupted . | . . . Allies Melted . | . . . Intel | -11 -10 -10 ------- Run | Scr Mat Min Robot Analysis Total . | . . . Derelict Logs Recovered . | . . . Drone Launches . | . . . Drone Recoveries . | . . . Exploration | -11 -10 -10 ------------- Run | Scr Mat Min Turns Passed 925 | 73 449 403 Spaces Moved 384 | 55 170 159 Core 6 | 6 . . Treads 224 | . 65 159 Legs 5 | . 5 . Wheels 149 | 49 100 . Hover . | . . . Flight . | . . . Fastest Speed 50 | 50 80 240 Average Speed 175 | 87 143 240 Slowest Speed 240 | 100 240 240 Overloaded Moves . | . . . Propulsion Burnouts . | . . . Robots Hopped . | . . . Cave-ins Triggered . | . . . Exploration Rate (%) 26 | 4 37 37 Regions Visited 2 Branch Regions 1 Pre-discovered Areas . | . . . Known Exits Taken . | . . . Unknown Exits Taken 2 | 1 1 . Scrap Searched . | . . . Spaces Dug . | . . . Terrain Destroyed . | . . . Melee . | . . . Projectile . | . . . AOE . | . . . Terrain Rammed . | . . . Walls Destroyed . | . . . Machines Disabled . | . . . Actions | -11 -10 -10 --------- Run | Scr Mat Min Total 512 | 70 268 174 Wait 19 | 3 10 6 Move 382 | 54 169 159 Hop . | . . . Pick Up 14 | 3 8 3 Fast Attach 11 | 7 4 . Attach 5 | . 4 1 Detach 1 | . 1 . Swap 5 | . 5 . Drop 2 | . 1 1 Fire 73 | 3 66 4 Melee . | . . . Ram . | . . . Kick . | . . . Crush . | . . . Escape Stasis . | . . . Rewire . | . . . Trap . | . . . Miscellaneous . | . . . Route ------- -11/Scrapyard -10/Materials -10/Mines History --------- Turn | Location | Event 11 | -11/Scrapyard | Discovered new exit (range 16) 74 | -11/Scrapyard | Entered Materials 226 | -10/Materials | Core integrity fell below 50% 310 | -10/Materials | Lost 4 parts (1p1n2w) 311 | -10/Materials | Discovered new exit (range 16) 342 | -10/Materials | Build established: Mutant 523 | -10/Materials | Entered Mines 866 | -10/Mines | YI-UF0 nonchalantly dropped a Grenade Launcher on the ground 916 | -10/Mines | Core integrity fell below 20% 926 | -10/Mines | Destroyed by YI-UF0 with YI-UF0's Doublenader Last Messages --------------- GOAL=ESCAPE 00546_ CGWFSVR8Z DIHMZZC:ZJ 00648_ Acquired Core Shielding. 00661_ Acquired Lgt. Armor Plating. 00662_ Dropped Aluminum Leg. 00678_ R-06 Scavenger collects Aluminum Leg. 00723_ K-01 Serf collects debris. 00749_ T-07 Excavator is excavating. 00802_ System corrupted: IFF burst signal emitted. 00866_ YI-UF0 nonchalantly drops a Grenade Launcher on the ground. 00877_ T-07 Excavator is excavating. 00898_ Acquired Grenade Launcher. 00907_ Wheel destroyed. 00907_ Ion Engine destroyed. 00910_ YI-UF0 mumbles something. 00911_ Lgt. Ion Engine destroyed. 00914_ U-05 Engineer lays Concrete. 00916_ U-05 Engineer builds a Wall. 00919_ The unstable cave ceiling collapses. 00926_ Lgt. Treads destroyed. Map ----- +----------------------------------------------------+ | ?????????????????????????????????????????? | | ?????????????????????????????????????????? | | ?????????????????????????????????????????? | | ?????????????????????????????????????????? | | ?????????????????????????????????????????? | | ?????????????????????????????????????????? | | ?????????????????????????????????????????? | | ?????????????????????????????????????????? | | ?????????????????????????????????????????? | | ?????????????????????????????????????????? | | ??????????????? ????????????????????????? | | ?????????????# #?##????????????????????? | | ????????????# # #????????????????????? | | ????????????# ????????????????????? | | ????????????# ##???????????????????? | | ???????????? #???????????????????? | | ????????????? ##??????????????????? | | ????????????? #??????????????????? | | ?????????????# ???????????????????? | | ?????????????# ????????????????????? | | ?????????????# ###??????????????????? | | ?????????????# g # ##?????????????????? | | ????????????## #?????????????????? | | ????????????# #?????????????????? | | ???????????### ######?????????????? | | ???????????# @ # ##????????????? | | ???????????# # #????????????? | | ??????###### # #????????????? | | ??????# ## # ### ##???????????? | | ???????# ## # ###### #???????????? | | ???????? ####### #????## #???????????? | | ???????####?????# #?????#? #???????##??? | | ????????????????# #?????# ##????## ##? | | ????????????????# #?????# #???## ## | | ?????????????????# ##?????# #??## # | | ?????????????????? #??????# #?## | | ?????????????????? #??????# ##?# | | ?????????????????# ######## #??# | | ?????????????????# #?## | | ?????????????????########## ### | | ????????????????????####### | | ????????????????????# #?? | | ????????????????????# ########### #?? | | ????????????????????# #??????????# ### | | ????????????????????# #?####????## # | | ???????????????##???# ### ##???# | | ???????????????# ### ##?## | | ???????????????# ## ### ### | | ???????????????# ### ### ##?#### | | ???????????????????# #?## #?????? | +----------------------------------------------------+ Best States ------------- Heat Dissipation 25 Energy Generation 10 Energy Capacity 250 Matter Stores 300 Matter Capacity 300 Sight Range 16 Robot Scan Range 14 Terrain Scan Range 16 Terrain Scan Density 10 Evasion (%) 44 Recoil Reduction 1 Item Schematics ----------------- None Robot Schematics ------------------ None Fabricated ------------ Nothing Alien Tech Used ----------------- None Achievements -------------- None Challenges ------------ None Game ------ Seed SuspensionIonKatana Manual? 0 Play Time 00:16:00 Cumulative 186.6 hours Start 2022.03.24 @ 15:19:30 End 2022.03.24 @ 15:59:47 Sessions 1 Manual Loads 0 Difficulty Rogue Special Mode None Game No. 94 Rogue 94 Adventurer 0 Explorer 0 Win Type - Total 5 Types 4/0/1/0/0/0/0/0/0 Lore% 65 Gallery% 71 Achievement% 59 Wizard Run 0 Options --------- ASCII 0 Keyboard 1 Movement Numpad Keybinds 0 Fullscreen 2 Font 18/SmallcapsGlow Map View 76x50 Tactical HUD 1 Map Filters NONE Filters NONE Steam 1 RUN: 50fccbf7-6920-490e-93fa-4a9cce84ba33